Cogmind - Beta 13 @@@ ROGUE MODE // 2024.05.15 @ 00:09:29 Player: rel Result: Destroyed self via exploding Plasma Injector Performance ------------- Evolutions (0) 0 Regions Visited (2) 400 Robots Destroyed (21) 105 Value Destroyed (640) 640 Prototype IDs (1) 20 Alien Tech Used (0) 0 Bonus (25) 25 TOTAL SCORE: 1190 Bonus ------- Follower Combat Kills 25 Cogmind --------- Core Integrity 0/250 Matter 300/300 Energy 224/250 System Corruption 0% Temperature Cool (18) Movement Walking (190) Ox1 Location -10/Mines Parts ------- > --- POWER (1) -------- Ion Engine > --- PROPULSION (2) --- Aluminum Leg Aluminum Leg > --- UTILITY (2) ------ Large Storage Unit Medium Armor Plating > --- WEAPON (2) ------- Advanced Beam Cannon Advanced Beam Cannon > --- INVENTORY (15) --- Ion Engine Light Nuclear Core Aluminum Leg Aluminum Leg Heat Sink Signal Interpreter Signal Interpreter Advanced Beam Cannon Advanced Beam Cannon Light Assault Rifle Grenade Launcher Datajack Hammer Peak State ------------ > --- POWER ------------ Light Ion Engine > --- PROPULSION ------- Wheel Compact Wheel > --- UTILITY ---------- Large Storage Unit Terrain Scan Processor > --- WEAPON ----------- Advanced Beam Cannon Advanced Beam Cannon > --- INVENTORY -------- Ion Engine Light Nuclear Core Signal Interpreter Advanced Beam Cannon Advanced Beam Cannon Light Assault Rifle Datajack Mining Laser [Rating: 13] Favorites ----------- Power Light Ion Engine Engine Light Ion Engine Propulsion Aluminum Leg Leg Aluminum Leg Wheel Wheel Utility Large Storage Unit Device ECM Suite Storage Large Storage Unit Processor Terrain Scan Processor Protection Medium Armor Plating Weapon Advanced Beam Cannon Energy Cannon Advanced Beam Cannon Ballistic Gun Assault Rifle Launcher Grenade Launcher Build | -11 -10 -10 ------- Run | Yrd Mat Min Slots Evolved . | . . . Power . | . . . Propulsion . | . . . Utility . | . . . Weapon . | . . . Parts Attached 18 | 6 10 2 Power 2 | 1 . 1 Engine 2 | 1 . 1 Core . | . . . Reactor . | . . . Propulsion 5 | 2 2 1 Treads . | . . . Leg 3 | . 2 1 Wheel 2 | 2 . . Hover . | . . . Flight . | . . . Utility 5 | 1 4 . Device 1 | . 1 . Storage 2 | 1 1 . Processor 1 | . 1 . Hackware . | . . . Protection 1 | . 1 . Artifact . | . . . Weapon 6 | 2 4 . Energy Gun . | . . . Energy Cannon 2 | . 2 . Ballistic Gun 3 | 2 1 . Ballistic Cannon . | . . . Launcher 1 | . 1 . Special Weapon . | . . . Impact Weapon . | . . . Slashing Weapon . | . . . Piercing Weapon . | . . . Special Melee Weapon . | . . . Unidentified Prototypes 1 | . 1 . Parts Lost 2 | . 2 . Power . | . . . Propulsion . | . . . Utility 1 | . 1 . Weapon 1 | . 1 . Highest Loss Streak 2 | . 2 . To Critical Strikes . | . . . Average Slot Usage (%) 97 | . 95 100 Engine 14 | . 14 14 Leg 15 | . 8 28 Wheel 12 | . 19 . Device 1 | . 2 . Storage 14 | . 14 14 Protection 10 | . 7 14 Energy Cannon 20 | . 16 28 Ballistic Gun 5 | . 8 . Launcher 1 | . 2 . Naked Turns . | . . . Heaviest Build 40 | 11 38 40 Greatest Support 26 | 26 26 20 Greatest Overweight (x) 12 | . 12 1 Average Overweight (x) . | . . 1 Largest Inventory Capacity 15 | 8 15 15 Average Capacity 13 | 6 12 15 Most Carried 13 | 5 11 13 Average Carried 8 | 2 6 11 Final Capacity 15 | 8 15 15 Final Carried 13 | 2 9 13 Class Distribution -------------------- 100% | Mutant Dominant Class ---------------- Mutant | -10/Materials Mutant | -10/Mines Resources | -11 -10 -10 ----------- Run | Yrd Mat Min Matter Collected 645 | 223 402 20 Remotely . | . . . Salvage Created 712 | . 646 66 Parts 37 | . 33 4 Haulers Intercepted 2 | . 2 . Recyclers Shooed 1 | . 1 . Parts Field Recycled . | . . . Retrieved Matter . | . . . Parts Self-Destructed . | . . . Prevented . | . . . Kills | -11 -10 -10 ------- Run | Yrd Mat Min Combat Hostiles Destroyed 15 | . 13 2 Guns 8 | . 8 . Cannons 3 | . 2 1 AOE 4 | . 3 1 Classes Destroyed 4 | . 4 . Worker 2 | . 2 . Hauler 2 | . 2 . Watcher 2 | . 2 . Grunt 15 | . 13 2 Best Kill Streak 5 | . 5 1 Combat Bots Only 4 | . 4 1 Max Kills in Single Turn 3 | . 3 1 Gunslinging . | . . . Exploded 2 | . 2 1 Melee . | . . . Uniques/NPCs Destroyed . | . . . Combat | -11 -10 -10 -------- Run | Yrd Mat Min Hostile Shots Fired 67 | . 60 7 Missed 23 | . 23 . Damage Taken 668 | . 521 147 Core 286 | . 202 84 Absorbed by Shields . | . . . Core Remaining (%) 100 | 100 . . Volleys Fired 70 | . 63 7 Largest 2 | . 2 2 Hottest 136 | . 136 136 Shots Fired 128 | . 114 14 Gun 78 | . 78 . Cannon 40 | . 26 14 Launcher 10 | . 10 . Special . | . . . Kinetic 78 | . 78 . Thermal 40 | . 26 14 Explosive 10 | . 10 . Electromagnetic . | . . . Robot Hit Streak 21 | . 21 4 Robot Miss Streak 3 | . 3 3 Penetration Max . | . . . Secondary Targets . | . . . Shots Hit Robots 80 | . 74 6 Core Hits 38 | . 35 3 Critical Kills 1 | . 1 . Critical Parts Destroyed . | . . . Critical Strikes 1 | . 1 . Meltdown 1 | . 1 . Melee Attacks . | . . . Impact . | . . . Slashing . | . . . Piercing . | . . . Sneak Attacks . | . . . Combat Hostiles . | . . . Follow-up Attacks . | . . . Damage Inflicted 1647 | . 1455 192 Guns 555 | . 555 . Cannons 579 | . 454 125 Explosions 490 | . 437 53 Melee . | . . . Ramming 23 | . 9 14 Kinetic 555 | . 555 . Thermal 632 | . 454 178 Explosive 437 | . 437 . Electromagnetic . | . . . Impact . | . . . Slashing . | . . . Piercing . | . . . Highest Corruption . | . . . Average Corruption . | . . . Corruption Purged . | . . . Corruption Blocked . | . . . Overload Shots . | . . . Overflow Damage 11 | . 11 . Projectiles 11 | . 11 . Explosions . | . . . Melee . | . . . Knockbacks . | . . . Impact . | . . . Kinetic . | . . . Secondary . | . . . Self-Inflicted Damage 93 | . 36 57 Shots 2 | . 1 1 Rammed 3 | . 3 . Targets Rammed 5 | . 3 2 Kicked 2 | . . 2 Crushed . | . . . Highest Temperature 529 | . 529 464 Average Temperature 170 | . 152 219 Received Heat Transfer 336 | . 285 51 Effects 7 | . 7 . Shutdowns 1 | . 1 . Energy Bleed 1 | . 1 . Damage (minor) 1 | . 1 . Damage (major) 4 | . 4 . Siege Activations . | . . . Robots Corrupted . | . . . Combat Hostiles . | . . . Parts Fried . | . . . Impact Corruptions . | . . . Robots Melted 1 | . 1 . Combat Hostiles . | . . . Parts Melted 2 | . 2 . Heat Transferred 1086 | . 814 272 Parts Sabotaged . | . . . Parts Stolen . | . . . Parts Stripped . | . . . Power Chain Reactions . | . . . Alert | -11 -10 -10 ------- Run | Yrd Mat Min Peak Influence 321 | . 321 66 Initial 34 | . . 34 Average 101 | . 147 19 Maximum Alert Level 1 | . 1 . Low Security (%) 80 | 100 70 100 Level 1 19 | . 29 . Level 2 . | . . . Level 3 . | . . . Level 4 . | . . . Level 5 . | . . . High Security . | . . . Max Security . | . . . Squads Dispatched 4 | . 3 1 Investigation 2 | . 1 1 Extermination . | . . . Reinforcement 2 | . 2 . Assault . | . . . Garrison . | . . . Intercept . | . . . Searches Triggered . | . . . Construction Impeded . | . . . Haulers Reinforced . | . . . Active Scanning Responses . | . . . Cargo Convoy Interrupts . | . . . Stealth | -11 -10 -10 --------- Run | Yrd Mat Min Distress Signals 3 | . 3 . Communications Jammed . | . . . Distress Signals . | . . . Times Spotted 33 | . 28 5 Peak Tracking Total 4 | . 4 3 Tactical Retreats 3 | . 3 . Traps | -11 -10 -10 ------- Run | Yrd Mat Min Traps Triggered . | . . . Indirectly . | . . . Trap Hack Attempts . | . . . Triggered . | . . . Disarmed . | . . . Reprogrammed . | . . . Reused . | . . . Traps Extracted . | . . . Installed . | . . . Triggered . | . . . Machines | -11 -10 -10 ---------- Run | Yrd Mat Min Machines Disabled 4 | . 1 3 Max in Single Turn 1 | . 1 1 Machines Repaired . | . . . Machines Dismantled . | . . . Machines Sabotaged . | . . . Overloaded Fab Kills . | . . . Hacking | -11 -10 -10 --------- Run | Yrd Mat Min Machines Accessed 9 | . 8 1 Terminals 8 | . 7 1 Fabricators . | . . . Repair Stations . | . . . Recycling Units 1 | . 1 . Scanalyzers . | . . . Garrison Access . | . . . Total Hacks 27 | . 18 9 Successful 15 | . 10 5 Failed 12 | . 8 4 Catastrophic 2 | . 2 . Database Lockouts . | . . . Manual . | . . . Terminals 25 | . 16 9 Fabricators . | . . . Repair Stations . | . . . Recycling Units 2 | . 2 . Scanalyzers . | . . . Garrison Access . | . . . Terminal Hacks 13 | . 8 5 Record 7 | . 2 5 Emergency Access Points 1 | . 1 . Locate Traps 3 | . 3 . Dispatch Records 1 | . 1 . Zone Layout 1 | . 1 . Fabricator Hacks . | . . . Repair Station Hacks . | . . . Recycling Unit Hacks 2 | . 2 . Retrieve Components 2 | . 2 . Scanalyzer . | . . . Garrison Access Hacks . | . . . Unauthorized Hacks . | . . . Terminals . | . . . Fabricators . | . . . Repair Stations . | . . . Recycling Units . | . . . Scanalyzers . | . . . Garrison Access . | . . . Data Cores Recovered . | . . . Used . | . . . Hacking Detections 7 | . 6 1 Full Trace Events 4 | . 3 1 Feedback Events . | . . . Feedback Blocked . | . . . Robot Schematics Acquired . | . . . Robots Built . | . . . Authchips . | . . . Time . | . . . Total Robot Build Rating . | . . . Part Schematics Acquired . | . . . Parts Built . | . . . Authchips . | . . . Time . | . . . Total Part Build Rating . | . . . Parts Repaired . | . . . Time . | . . . Parts Recycled . | . . . Recycled Matter . | . . . Retrieved Matter . | . . . Retrieved Components 9 | . 9 . Parts Scanalyzed . | . . . Part Schematics Acquired . | . . . Parts Damaged . | . . . Bothacking | -11 -10 -10 ------------ Run | Yrd Mat Min Used RIF Installer . | . . . Robots Hacked . | . . . Non-combat . | . . . Combat . | . . . Robot Hacks Applied . | . . . Relay Couplers Released . | . . . Fabnet Peak Effective % . | . . . Robots Rewired . | . . . Allies Hacked . | . . . Hacks Repelled . | . . . Allies | -11 -10 -10 -------- Run | Yrd Mat Min Total Allies 3 | . . 3 Largest Group 3 | . . 3 Highest-Rated Group 40 | . . 40 Highest-Rated Ally 16 | . . 16 Total Orders . | . . . Ally Attacks 13 | . . 13 Total Damage 72 | . . 72 Kills 1 | . . 1 Allies Corrupted . | . . . Allies Melted . | . . . Intel | -11 -10 -10 ------- Run | Yrd Mat Min Robot Analysis Total . | . . . Derelict Logs Recovered 2 | . . 2 Drone Launches . | . . . Drone Recoveries . | . . . Exploration | -11 -10 -10 ------------- Run | Yrd Mat Min Turns Passed 2286 | 42 1476 768 Spaces Moved 1451 | 41 1060 350 Core 21 | 18 3 . Treads . | . . . Legs 583 | . 233 350 Wheels 847 | 23 824 . Hover . | . . . Flight . | . . . Fastest Speed 50 | 50 90 190 Average Speed 134 | 72 117 190 Slowest Speed 650 | 90 650 190 Overloaded Moves . | . . . Propulsion Burnouts . | . . . Robots Hopped . | . . . Cave-ins Triggered . | . . . Exploration Rate (%) 57 | 3 93 75 Regions Visited 2 Branch Regions 1 Pre-discovered Areas 2 | . . 2 Known Exits Taken . | . . . Unknown Exits Taken 2 | 1 1 . Scrap Searched 3 | . . 3 Spaces Dug . | . . . Terrain Destroyed 50 | . 50 . Melee . | . . . Projectile . | . . . AOE 50 | . 50 . Terrain Rammed . | . . . Walls Destroyed . | . . . Machines Disabled . | . . . Actions | -11 -10 -10 --------- Run | Yrd Mat Min Total 1672 | 52 1180 440 Wait 92 | . 21 71 Move 1449 | 40 1059 350 Hop . | . . . Pick Up 29 | 6 17 6 Fast Attach 2 | 2 . . Attach 11 | 4 7 . Detach . | . . . Swap 5 | . 3 2 Drop 9 | . 7 2 Fire 70 | . 63 7 Melee . | . . . Ram 3 | . 3 . Kick 2 | . . 2 Crush . | . . . Escape Stasis . | . . . Rewire . | . . . Trap . | . . . Miscellaneous . | . . . Route ------- -11/Scrapyard -10/Materials (discovered 4 exits: [*Mat x3] / *Min) -10/Mines (discovered 2 exits: [*Mat x2]) History --------- Turn | Location | Event 2 | -11/Scrapyard | Met Revision 17 5 | -11/Scrapyard | Discovered new exit (range 15) 43 | -11/Scrapyard | Entered Materials 295 | -10/Materials | Discovered new exit (range 14) 307 | -10/Materials | Build established: Mutant 479 | -10/Materials | Core integrity fell below 50% 524 | -10/Materials | Discovered new exit (range 8) 535 | -10/Materials | Core integrity fell below 20% 652 | -10/Materials | Discovered new exit (range 16) 823 | -10/Materials | Discovered new exit (range 9) 1519 | -10/Materials | Entered Mines 1546 | -10/Mines | Learned location of Storage (-8) 1617 | -10/Mines | YI-UF0 nonchalantly dropped a Grenade Launcher on the ground 1650 | -10/Mines | Discovered new exit (range 16) 1797 | -10/Mines | Assisted by bots powering up and referring to "LRC-V3" 1835 | -10/Mines | Learned Materials terminal intel 1897 | -10/Mines | Lost 3 allies 2264 | -10/Mines | Discovered new exit (range 9) 2287 | -10/Mines | Destroyed self via exploding Plasma Injector Last Messages --------------- >>Query(Derelict) A generic term for the many partially functioning and/or errant robots that exist in the [Caves] and [Mines] surrounding [Complex 0b1]. Some are failed experiments, others are common robots glitched beyond repair. In some cases they may communicate with one another and exhibit rudimentary forms of organization, or have developed robotic ecosystems of their own. While I could do more to control their spread, they generally don't cause too much trouble nor pose much of a threat, and I find them an interesting study in robotic evolution. I did unfortunately have to displace some of my favorite Derelict populations during the construction of [Complex 0b10]. >>Query(Complex 0b1) Primary subterranean facilities below the faux [Human] city, developed over the several decades following deployment of Project [Seraph] in 2211. Surrounding the complex are cave systems and old mining tunnels now populated by Derelicts. 02283_ ALERT: Suspicious activity at Terminal M001. Dispatching Investigation squad. 02287_ Plasma Injector explodes. 02287_ G-34 Mercenary destroyed. Map ----- +----------------------------------------------------+ | ??????????????????????????????????? | | ??????????????????????????????????? | | ??????????????????????????????????? | | ??????????????????????????????????? | | ???####???????????????????????????? | | ???# ##??????????????????????????? | | ??? ??????????????????????????? | | ??? ??????????????????????????? | | ??? #??????????????????????????? | | ???? ##??????????????????????????? | | ???## ##??????????????????????????? | | ???##%###?????????????????????????? | | ???##% ##??????????##########????? | | ??### #??????????# #????? | | ### #??????????# """ #????? | | % #??????????# """ #????? | | ## ##??????????# """ #????? | | ### ##???????????# """ #????? | | #?## ############?# #????? | | #??## % #?##### ####????? | | #???# ########## ####### #???????? | | ????# #????????# #???????? | | ????# #????????# #########???????? | | ????# #????????# #???????###?????? | | ????# #????????# ####??###T#####?? | | ????# #????????# #??#@=%g #?? | | ????# #????????# ## #??# =g #?? | | ????# #????????# ## #??# < #?? | | ????# #????????# ## #### #?? | | ????# #????????# ## % #?? | | ????# #???????? #######! #?? | | ????# #???????? ?????### #####?? | | ????# #???????? ???????# #?????? | | ????# #???????? ???????# #?????? | | ##### #???????? ???????# #?????? | | = #???????? ???????# #?????? | | ##### %#?###????# ???????# #?????? | | #???# ## ##???? ???????# #?????? | | #?### # ##??? ???????# ??????? | | ### ##?? ???????# ??????? | | ## #??""???????? ??????? | | ## #???????????? ??????? | | ### """??????? ??????? | | #?## """??????? ??????? | | #??## ## ?????? ??????? | | #???#### ##?? ## ????????????? | | #???????# ##????????????????????? | | ####????? #?????????????????????? | | ##???? #?????????????????????? | | ##??? ?????????????????????? | +----------------------------------------------------+ Best States ------------- Heat Dissipation 25 Energy Generation 10 Energy Capacity 250 Matter Stores 300 Matter Capacity 300 Sight Range 16 Terrain Scan Density 85 ECM Strength 1 Armor Coverage 225 Evasion (%) 50 Item Schematics ----------------- None Robot Schematics ------------------ None Fabricated ------------ Nothing Alien Tech Used ----------------- None Achievements -------------- None Challenges ------------ None Game ------ Seed WardroneCoolingCycler Manual? 0 Play Time 00:16:46 Cumulative 19.9 hours Start 2024.05.14 @ 23:52:45 End 2024.05.15 @ 00:09:29 Sessions 1 Manual Loads 0 Difficulty Rogue Special Mode None Game No. 27 Rogue 27 Adventurer 0 Explorer 0 Win Type - Total 0 Types 0/0/0/0/0/0/0/0/0 Lore% 20 Gallery% 29 Achievement% 20 Wizard Run 0 Options --------- Layout 0 ASCII 0 Keyboard 0 Movement Mouse Keybinds 0 Fullscreen 1 Font 24/Smallcaps Map View 76x50 Zoom Use 0% Tactical HUD 1 Map Filters NONE Filters NONE Steam 1 RUN: c372bac8-ca1d-45df-812e-985500379368